Workbook

Sheet tabula
C2: "Ziemassvētku viktorīna" (tiešsaistē / vebinārā) | 2025.gada 24.decembris
B3: Grupa | C3: # | D3: Dalībnieks | Raunds | Tēma | E3: 1 | F3: 2 | G3: 3 | H3: 4 | I3: 5 | J3: 6 | K3: 7 | L3: 8 | M3: 9 | N3: 10 | O3: KOPĀ | P3: Laiks kopā uz pareizajām atbildēm | Q3: Pareizās atbildes (max) | R3: Vid.laiks uz 1 pareizo atb.
E4: Pavediens | F4: Ekspresis | G4: Filmu ne-pirmā plāna varoņi | H4: Burtu mīkla | I4: Ķēde | J4: Latvija | K4: Risks: aktuālais šajās dienās | L4: Kas kopīgs? | M4: Liekais pazūd | N4: Audio
D5: Max punkti raundā (bez bonusiem) | E5: 150 | F5: 216 | G5: 150 | H5: =28*6 -> 168 | I5: 200 | J5: 150 | K5: 120 | L5: 205 | M5: 150 | N5: 150 | O5: =SUM(E5:N5) -> 1659
C6: Jautājumi | E6: 6 | F6: 12 | G6: 6 | H6: 6 | I6: 8 | J6: 6 | K6: 6 | L6: 8 | M6: 6 | N6: 6 | Q6: =SUM(E6:N6) -> 70
D7: Vidējie rādītāji | E7: =ROUND(AVERAGE(E8:E939),1) -> 71.9 | F7: =ROUND(AVERAGE(F8:F939),1) -> 105.4 | G7: =ROUND(AVERAGE(G8:G939),1) -> 89 | H7: =ROUND(AVERAGE(H8:H939),1) -> 63.5 | I7: =ROUND(AVERAGE(I8:I939),1) -> 125.1 | J7: =ROUND(AVERAGE(J8:J939),1) -> 47.1 | K7: =ROUND(AVERAGE(K8:K939),1) -> 12.6 | L7: =ROUND(AVERAGE(L8:L939),1) -> 107.8 | M7: =ROUND(AVERAGE(M8:M939),1) -> 58 | N7: =ROUND(AVERAGE(N8:N939),1) -> 54.6 | O7: =ROUND(AVERAGE(O8:O939),1) -> 735 | P7: - | Q7: =ROUND(AVERAGE(Q8:Q939),1) -> 45.4 | R7: -
B8: 3 | C8: 1 | D8: ABC | E8: 93 | F8: 150 | G8: 131 | H8: 65 | I8: 185 | J8: 58 | K8: 89 | L8: 171 | M8: 99 | N8: 111 | O8: 1152 | P8: 07 min. 55,428 | Q8: 62 | R8: 07,668 sek.
B9: 1 | C9: 2 | D9: Whitelies | E9: 98 | F9: 162 | G9: 128 | H9: 94 | I9: 159 | J9: 64 | K9: 37 | L9: 164 | M9: 114 | N9: 117 | O9: 1137 | P9: 07 min. 35,855 | Q9: 60 | R9: 07,598 sek.
B10: 1 | C10: 3 | D10: Sandas lielais brālis | E10: 93 | F10: 125 | G10: 108 | H10: 94 | I10: 178 | J10: 113 | K10: 54 | L10: 180 | M10: 107 | N10: 84 | O10: 1136 | P10: 06 min. 30,365 | Q10: 58 | R10: 06,730 sek.
B11: 3 | C11: 4 | D11: Jautrīši | E11: 109 | F11: 151 | G11: 127 | H11: 77 | I11: 169 | J11: 65 | K11: 70 | L11: 153 | M11: 85 | N11: 114 | O11: 1120 | P11: 07 min. 31,853 | Q11: 59 | R11: 07,659 sek.
B12: 1 | C12: 5 | D12: Zemzari | E12: 102 | F12: 169 | G12: 134 | H12: 77 | I12: 185 | J12: 63 | K12: 62 | L12: 131 | M12: 104 | N12: 88 | O12: 1115 | P12: 06 min. 01,282 | Q12: 58 | R12: 06,229 sek.
B13: 3 | C13: 6 | D13: Hugis | E13: 99 | F13: 128 | G13: 131 | H13: 106 | I13: 185 | J13: 49 | K13: 74 | L13: 176 | M13: 94 | N13: 63 | O13: 1105 | P13: 07 min. 18,277 | Q13: 58 | R13: 07,557 sek.
B14: 1 | C14: 7 | D14: FraRix | E14: 95 | F14: 99 | G14: 120 | H14: 97 | I14: 174 | J14: 60 | K14: 44 | L14: 152 | M14: 125 | N14: 129 | O14: 1095 | P14: 09 min. 30,834 | Q14: 62 | R14: 09,207 sek.
B15: 1 | C15: 8 | D15: MADONIJĀŅI | E15: 100 | F15: 190 | G15: 128 | H15: 74 | I15: 156 | J15: 105 | K15: 60 | L15: 157 | M15: 66 | N15: 57 | O15: 1093 | P15: 09 min. 15,961 | Q15: 61 | R15: 09,114 sek.
B16: 2 | C16: 9 | D16: Rietumkrasta ziemeļbrieži | E16: 95 | F16: 110 | G16: 90 | H16: 89 | I16: 177 | J16: 112 | K16: 54 | L16: 176 | M16: 103 | N16: 84 | O16: 1090 | P16: 07 min. 37,334 | Q16: 58 | R16: 07,885 sek.
B17: 3 | C17: 10 | D17: Ziemassvētku krīzes Komiteja! | E17: 104 | F17: 132 | G17: 130 | H17: 79 | I17: 163 | J17: 67 | K17: 26 | L17: 150 | M17: 102 | N17: 116 | O17: 1069 | P17: 08 min. 24,146 | Q17: 59 | R17: 08,545 sek.
B18: 2 | C18: 11 | D18: Grinčiiii | E18: 103 | F18: 103 | G18: 102 | H18: 89 | I18: 169 | J18: 110 | K18: 51 | L18: 155 | M18: 101 | N18: 85 | O18: 1068 | P18: 07 min. 39,219 | Q18: 57 | R18: 08,056 sek.
B19: 2 | C19: 12 | D19: nezinu | E19: 107 | F19: 125 | G19: 94 | H19: 76 | I19: 187 | J19: 63 | K19: 62 | L19: 146 | M19: 85 | N19: 115 | O19: 1060 | P19: 09 min. 36,387 | Q19: 60 | R19: 09,606 sek.
B20: 2 | C20: 13 | D20: Austrumu gudrie_13 | E20: 87 | F20: 151 | G20: 132 | H20: 81 | I20: 160 | J20: 62 | K20: 21 | L20: 167 | M20: 118 | N20: 80 | O20: 1059 | P20: 06 min. 33,786 | Q20: 56 | R20: 07,032 sek.
B21: 3 | C21: 14 | D21: Everti Lapzemē | E21: 106 | F21: 173 | G21: 111 | H21: 69 | I21: 161 | J21: 92 | K21: 71 | L21: 108 | M21: 67 | N21: 99 | O21: 1057 | P21: 07 min. 54,869 | Q21: 59 | R21: 08,049 sek.
B22: 1 | C22: 15 | D22: Lettu rūķi | E22: 104 | F22: 137 | G22: 123 | H22: 94 | I22: 187 | J22: 74 | K22: 33 | L22: 131 | M22: 102 | N22: 67 | O22: 1052 | P22: 09 min. 26,238 | Q22: 60 | R22: 09,437 sek.
B23: 3 | C23: 16 | D23: Kartupeļu Ziemassvētki | E23: 87 | F23: 98 | G23: 128 | H23: 81 | I23: 182 | J23: 81 | K23: 49 | L23: 143 | M23: 125 | N23: 76 | O23: 1050 | P23: 09 min. 57,386 | Q23: 60 | R23: 09,956 sek.
B24: 3 | C24: 17 | D24: WOW man ir čirkaini mati | E24: 72 | F24: 130 | G24: 90 | H24: 84 | I24: 173 | J24: 101 | K24: 55 | L24: 145 | M24: 95 | N24: 104 | O24: 1049 | P24: 10 min. 43,243 | Q24: 61 | R24: 10,545 sek.
B25: 3 | C25: 18 | D25: Jāņupes bruņinieki | E25: 99 | F25: 149 | G25: 109 | H25: 93 | I25: 163 | J25: 40 | K25: 60 | L25: 164 | M25: 100 | N25: 69 | O25: 1046 | P25: 06 min. 18,587 | Q25: 55 | R25: 06,883 sek.
B26: 1 | C26: 19 | D26: Inspektors DZELTENĀ CIELAVA | E26: 99 | F26: 146 | G26: 120 | H26: 74 | I26: 156 | J26: 28 | K26: 94 | L26: 152 | M26: 91 | N26: 81 | O26: 1041 | P26: 10 min. 04,896 | Q26: 60 | R26: 10,082 sek.
B27: 1 | C27: 20 | D27: Nameja iela | E27: 92 | F27: 98 | G27: 110 | H27: 71 | I27: 157 | J27: 90 | K27: 63 | L27: 161 | M27: 99 | N27: 96 | O27: 1037 | P27: 09 min. 35,079 | Q27: 58 | R27: 09,915 sek.
B28: 3 | C28: 21 | D28: Suituceļš un eglītes | E28: 105 | F28: 125 | G28: 102 | H28: 61 | I28: 164 | J28: 123 | K28: 35 | L28: 154 | M28: 106 | N28: 60 | O28: 1035 | P28: 07 min. 39,231 | Q28: 56 | R28: 08,201 sek.
C29: 22 | D29: Upes iela | E29: 100 | F29: 157 | G29: 90 | H29: 89 | I29: 183 | J29: 58 | K29: 67 | L29: 165 | M29: 63 | N29: 57 | O29: 1029 | P29: 07 min. 43,470 | Q29: 56 | R29: 08,276 sek.
C30: 23 | D30: FCK PTN | E30: 105 | F30: 121 | G30: 111 | H30: 94 | I30: 187 | J30: 75 | K30: 32 | L30: 164 | M30: 48 | N30: 90 | O30: 1027 | P30: 07 min. 59,363 | Q30: 56 | R30: 08,560 sek.
C31: 24 | D31: Klieši & Draugi | E31: 100 | F31: 119 | G31: 117 | H31: 75 | I31: 148 | J31: 70 | K31: 20 | L31: 142 | M31: 115 | N31: 113 | O31: 1019 | P31: 09 min. 59,932 | Q31: 59 | R31: 10,168 sek.
C32: 25 | D32: Kaksītis123 | E32: 78 | F32: 135 | G32: 134 | H32: 77 | I32: 179 | J32: 34 | K32: 37 | L32: 170 | M32: 73 | N32: 100 | O32: 1017 | P32: 05 min. 15,869 | Q32: 52 | R32: 06,074 sek.
C33: 26 | D33: SALA PATĒVS | E33: 92 | F33: 132 | G33: 120 | H33: 94 | I33: 138 | J33: 108 | K33: 5 | L33: 164 | M33: 92 | N33: 67 | O33: 1012 | P33: 09 min. 25,537 | Q33: 58 | R33: 09,751 sek.
C34: 27 | D34: Veckampu Dinamo | E34: 74 | F34: 113 | G34: 105 | H34: 72 | I34: 170 | J34: 42 | K34: 89 | L34: 140 | M34: 143 | N34: 63 | O34: 1011 | P34: 08 min. 19,131 | Q34: 56 | R34: 08,913 sek.
C35: 28 | D35: Ziemassvētku JampaPīpis | E35: 105 | F35: 111 | G35: 129 | H35: 72 | I35: 149 | J35: 76 | K35: 74 | L35: 137 | M35: 87 | N35: 67 | O35: 1007 | P35: 10 min. 31,400 | Q35: 59 | R35: 10,702 sek.
C36: 29 | D36: Euphorbia pulcherrima | E36: 117 | F36: 160 | G36: 134 | H36: 72 | I36: 152 | J36: 54 | K36: 2 | L36: 152 | M36: 105 | N36: 59 | O36: 1007 | P36: 07 min. 53,747 | Q36: 56 | R36: 08,460 sek.
C37: 30 | D37: Podzinieks | E37: 95 | F37: 171 | G37: 137 | H37: 55 | I37: 152 | J37: 72 | K37: -17 | L37: 156 | M37: 117 | N37: 69 | O37: 1007 | P37: 06 min. 59,949 | Q37: 55 | R37: 07,635 sek.
C38: 31 | D38: Kikariguu | E38: 106 | F38: 184 | G38: 137 | H38: 87 | I38: 163 | J38: 58 | K38: 4 | L38: 162 | M38: 88 | N38: 18 | O38: 1007 | P38: 05 min. 06,156 | Q38: 52 | R38: 05,888 sek.
C39: 32 | D39: Ķimenīte | E39: 86 | F39: 97 | G39: 138 | H39: 78 | I39: 130 | J39: 119 | K39: 52 | L39: 142 | M39: 93 | N39: 71 | O39: 1006 | P39: 09 min. 01,218 | Q39: 56 | R39: 09,665 sek.
C40: 33 | D40: Intars Tusulis | E40: 88 | F40: 114 | G40: 113 | H40: 72 | I40: 154 | J40: 73 | K40: 47 | L40: 151 | M40: 116 | N40: 77 | O40: 1005 | P40: 08 min. 37,247 | Q40: 58 | R40: 08,918 sek.
C41: 34 | D41: Mandarīma | E41: 106 | F41: 121 | G41: 125 | H41: 77 | I41: 179 | J41: 67 | K41: 23 | L41: 151 | M41: 79 | N41: 76 | O41: 1004 | P41: 09 min. 30,430 | Q41: 57 | R41: 10,008 sek.
C42: 35 | D42: Vilciņi | E42: 89 | F42: 124 | G42: 119 | H42: 68 | I42: 165 | J42: 70 | K42: 63 | L42: 153 | M42: 69 | N42: 78 | O42: 998 | P42: 12 min. 18,437 | Q42: 62 | R42: 11,910 sek.
C43: 36 | D43: 8 kustoņi | E43: 85 | F43: 131 | G43: 110 | H43: 93 | I43: 162 | J43: 79 | K43: 44 | L43: 108 | M43: 98 | N43: 88 | O43: 998 | P43: 10 min. 20,619 | Q43: 59 | R43: 10,519 sek.
C44: 37 | D44: Ziemassvētku 7nieks | E44: 85 | F44: 143 | G44: 132 | H44: 101 | I44: 175 | J44: 60 | K44: -7 | L44: 150 | M44: 75 | N44: 81 | O44: 995 | P44: 09 min. 29,148 | Q44: 58 | R44: 09,813 sek.
C45: 38 | D45: VECMIGRAVIS | E45: 92 | F45: 120 | G45: 136 | H45: 77 | I45: 161 | J45: 101 | K45: 69 | L45: 107 | M45: 46 | N45: 83 | O45: 992 | P45: 09 min. 13,211 | Q45: 57 | R45: 09,705 sek.
C46: 39 | D46: Pakotāji | E46: 95 | F46: 129 | G46: 91 | H46: 78 | I46: 152 | J46: 56 | K46: 58 | L46: 148 | M46: 92 | N46: 87 | O46: 986 | P46: 09 min. 30,612 | Q46: 57 | R46: 10,011 sek.
C47: 40 | D47: Rūķis Stūķis | E47: 85 | F47: 169 | G47: 112 | H47: 73 | I47: 154 | J47: 54 | K47: 5 | L47: 138 | M47: 109 | N47: 87 | O47: 986 | P47: 07 min. 22,262 | Q47: 55 | R47: 08,041 sek.
C48: 41 | D48: BraveDucks | E48: 101 | F48: 143 | G48: 104 | H48: 96 | I48: 186 | J48: 95 | K48: 40 | L48: 112 | M48: 29 | N48: 79 | O48: 985 | P48: 07 min. 51,305 | Q48: 54 | R48: 08,728 sek.
C49: 42 | D49: Avotiņi | E49: 84 | F49: 147 | G49: 84 | H49: 59 | I49: 168 | J49: 98 | K49: 54 | L49: 114 | M49: 59 | N49: 115 | O49: 982 | P49: 10 min. 38,250 | Q49: 59 | R49: 10,818 sek.
C50: 43 | D50: Bebenes | E50: 56 | F50: 122 | G50: 107 | H50: 79 | I50: 179 | J50: 88 | K50: 63 | L50: 123 | M50: 87 | N50: 77 | O50: 981 | P50: 07 min. 47,659 | Q50: 55 | R50: 08,503 sek.
C51: 44 | D51: K101 | E51: 77 | F51: 124 | G51: 100 | H51: 90 | I51: 175 | J51: 100 | K51: 42 | L51: 112 | M51: 49 | N51: 105 | O51: 974 | P51: 14 min. 11,878 | Q51: 64 | R51: 13,311 sek.
C52: 45 | D52: Austošais Susurs | E52: 103 | F52: 145 | G52: 121 | H52: 67 | I52: 158 | J52: 21 | K52: 53 | L52: 140 | M52: 105 | N52: 61 | O52: 974 | P52: 07 min. 22,180 | Q52: 54 | R52: 08,189 sek.
C53: 46 | D53: Pārsliņas atgriežas | E53: 107 | F53: 136 | G53: 136 | H53: 92 | I53: 155 | J53: 50 | K53: 53 | L53: 129 | M53: 50 | N53: 65 | O53: 973 | P53: 10 min. 11,861 | Q53: 58 | R53: 10,549 sek.
C54: 47 | D54: Petera iela | E54: 92 | F54: 124 | G54: 79 | H54: 68 | I54: 186 | J54: 75 | K54: 35 | L54: 128 | M54: 112 | N54: 74 | O54: 973 | P54: 06 min. 53,671 | Q54: 53 | R54: 07,805 sek.
C55: 48 | D55: LāciKaķīc | E55: 98 | F55: 101 | G55: 112 | H55: 53 | I55: 146 | J55: 86 | K55: 25 | L55: 161 | M55: 106 | N55: 84 | O55: 972 | P55: 09 min. 57,916 | Q55: 56 | R55: 10,677 sek.
C56: 49 | D56: Ģimenītes Ziemīši | E56: 81 | F56: 119 | G56: 126 | H56: 95 | I56: 166 | J56: 51 | K56: 38 | L56: 146 | M56: 58 | N56: 91 | O56: 971 | P56: 10 min. 46,324 | Q56: 59 | R56: 10,955 sek.
C57: 50 | D57: Ieva | E57: 80 | F57: 158 | G57: 116 | H57: 74 | I57: 151 | J57: 74 | K57: 9 | L57: 114 | M57: 100 | N57: 95 | O57: 971 | P57: 09 min. 16,901 | Q57: 57 | R57: 09,770 sek.
C58: 51 | D58: Augstienes iela | E58: 66 | F58: 146 | G58: 107 | H58: 83 | I58: 169 | J58: 84 | K58: 31 | L58: 124 | M58: 63 | N58: 97 | O58: 970 | P58: 12 min. 06,208 | Q58: 61 | R58: 11,905 sek.
C59: 52 | D59: Gandrīz visas Zīles | E59: 91 | F59: 157 | G59: 114 | H59: 82 | I59: 177 | J59: 43 | K59: -11 | L59: 135 | M59: 82 | N59: 100 | O59: 970 | P59: 06 min. 30,130 | Q59: 53 | R59: 07,361 sek.
C60: 53 | D60: Jaunanglijas gliemju zupa | E60: 13 | F60: 106 | G60: 136 | H60: 100 | I60: 175 | J60: 80 | K60: 25 | L60: 156 | M60: 115 | N60: 63 | O60: 969 | P60: 08 min. 36,922 | Q60: 55 | R60: 09,399 sek.
C61: 54 | D61: Skrējēji | E61: 79 | F61: 141 | G61: 84 | H61: 88 | I61: 172 | J61: 71 | K61: 36 | L61: 138 | M61: 82 | N61: 71 | O61: 962 | P61: 11 min. 11,370 | Q61: 59 | R61: 11,379 sek.
C62: 55 | D62: Ziemīšu Žurkas | E62: 80 | F62: 85 | G62: 70 | H62: 65 | I62: 139 | J62: 83 | K62: 59 | L62: 149 | M62: 116 | N62: 115 | O62: 961 | P62: 11 min. 31,473 | Q62: 59 | R62: 11,720 sek.
C63: 56 | D63: BunS | E63: 84 | F63: 103 | G63: 76 | H63: 93 | I63: 126 | J63: 96 | K63: 57 | L63: 142 | M63: 97 | N63: 87 | O63: 961 | P63: 09 min. 44,285 | Q63: 57 | R63: 10,251 sek.
C64: 57 | D64: Sardele | E64: 66 | F64: 64 | G64: 75 | H64: 71 | I64: 186 | J64: 87 | K64: 71 | L64: 182 | M64: 96 | N64: 60 | O64: 958 | P64: 03 min. 38,131 | Q64: 45 | R64: 04,847 sek.
C65: 58 | D65: Ziemassvētku Elfi Tīrumniekos | E65: 76 | F65: 122 | G65: 105 | H65: 66 | I65: 174 | J65: 49 | K65: 67 | L65: 182 | M65: 43 | N65: 73 | O65: 957 | P65: 09 min. 40,145 | Q65: 56 | R65: 10,360 sek.
C66: 59 | D66: Visu svētku jampadracis | E66: 69 | F66: 102 | G66: 93 | H66: 69 | I66: 170 | J66: 92 | K66: 65 | L66: 169 | M66: 77 | N66: 50 | O66: 956 | P66: 10 min. 47,162 | Q66: 58 | R66: 11,158 sek.
C67: 60 | D67: IGG | E67: 88 | F67: 95 | G67: 129 | H67: 59 | I67: 152 | J67: 73 | K67: 30 | L67: 155 | M67: 82 | N67: 92 | O67: 955 | P67: 10 min. 36,839 | Q67: 58 | R67: 10,980 sek.
C68: 61 | D68: Sila iela 67 | E68: 110 | F68: 154 | G68: 110 | H68: 68 | I68: 151 | J68: 42 | K68: 12 | L68: 153 | M68: 65 | N68: 90 | O68: 955 | P68: 08 min. 29,517 | Q68: 55 | R68: 09,264 sek.
C69: 62 | D69: Vācieši | E69: 116 | F69: 139 | G69: 125 | H69: 74 | I69: 155 | J69: 54 | K69: 30 | L69: 97 | M69: 115 | N69: 50 | O69: 955 | P69: 07 min. 51,597 | Q69: 53 | R69: 08,898 sek.
C70: 63 | D70: Noras | E70: 108 | F70: 115 | G70: 105 | H70: 75 | I70: 173 | J70: 112 | K70: 25 | L70: 103 | M70: 58 | N70: 76 | O70: 950 | P70: 08 min. 04,693 | Q70: 53 | R70: 09,145 sek.
C71: 64 | D71: Čempioni | E71: 111 | F71: 85 | G71: 91 | H71: 73 | I71: 161 | J71: 80 | K71: 43 | L71: 139 | M71: 92 | N71: 75 | O71: 950 | P71: 07 min. 24,064 | Q71: 52 | R71: 08,540 sek.
C72: 65 | D72: ROBEŽ IEL | E72: 83 | F72: 98 | G72: 101 | H72: 86 | I72: 160 | J72: 104 | K72: 44 | L72: 145 | M72: 51 | N72: 76 | O72: 948 | P72: 10 min. 59,595 | Q72: 57 | R72: 10,568 sek.
C73: 66 | D73: Ķenguru mafija | E73: 84 | F73: 158 | G73: 115 | H73: 96 | I73: 175 | J73: 55 | K73: 55 | L73: 131 | M73: 43 | N73: 35 | O73: 947 | P73: 09 min. 11,652 | Q73: 55 | R73: 10,030 sek.
C74: 67 | D74: Meliorātori | E74: 81 | F74: 127 | G74: 109 | H74: 64 | I74: 137 | J74: 79 | K74: 35 | L74: 126 | M74: 70 | N74: 117 | O74: 945 | P74: 09 min. 53,709 | Q74: 57 | R74: 10,416 sek.
C75: 68 | D75: Ankmaņi | E75: 75 | F75: 78 | G75: 104 | H75: 70 | I75: 160 | J75: 102 | K75: 67 | L75: 156 | M75: 52 | N75: 80 | O75: 944 | P75: 12 min. 03,721 | Q75: 57 | R75: 12,697 sek.
C76: 69 | D76: Tīnūžu Rūķīši | E76: 98 | F76: 156 | G76: 113 | H76: 76 | I76: 133 | J76: 19 | K76: -11 | L76: 155 | M76: 86 | N76: 116 | O76: 941 | P76: 06 min. 29,479 | Q76: 52 | R76: 07,490 sek.
C77: 70 | D77: CREME BRULE | E77: 81 | F77: 120 | G77: 84 | H77: 66 | I77: 159 | J77: 79 | K77: 29 | L77: 149 | M77: 84 | N77: 87 | O77: 938 | P77: 10 min. 06,843 | Q77: 57 | R77: 10,646 sek.
C78: 71 | D78: Mandžūrieši | E78: 75 | F78: 143 | G78: 103 | H78: 63 | I78: 154 | J78: 96 | K78: 59 | L78: 133 | M78: 53 | N78: 59 | O78: 938 | P78: 08 min. 12,075 | Q78: 54 | R78: 09,113 sek.
C79: 72 | D79: Badijs spēlē viktorīnu | E79: 79 | F79: 121 | G79: 129 | H79: 93 | I79: 149 | J79: 82 | K79: 23 | L79: 89 | M79: 88 | N79: 85 | O79: 938 | P79: 07 min. 29,082 | Q79: 52 | R79: 08,636 sek.
C80: 73 | D80: KikīMikī meistari | E80: 80 | F80: 122 | G80: 96 | H80: 68 | I80: 156 | J80: 54 | K80: 62 | L80: 153 | M80: 62 | N80: 82 | O80: 935 | P80: 12 min. 57,574 | Q80: 60 | R80: 12,960 sek.
C81: 74 | D81: Mimiko | E81: 68 | F81: 106 | G81: 138 | H81: 91 | I81: 149 | J81: 105 | K81: 22 | L81: 130 | M81: 39 | N81: 87 | O81: 935 | P81: 09 min. 15,534 | Q81: 53 | R81: 10,482 sek.
C82: 75 | D82: Valmiermuižas rūķīši | E82: 83 | F82: 124 | G82: 109 | H82: 79 | I82: 154 | J82: 59 | K82: 46 | L82: 141 | M82: 83 | N82: 57 | O82: 935 | P82: 07 min. 01,060 | Q82: 50 | R82: 08,421 sek.
C83: 76 | D83: MELDRI | E83: 79 | F83: 142 | G83: 128 | H83: 92 | I83: 142 | J83: 61 | K83: 25 | L83: 145 | M83: 54 | N83: 66 | O83: 934 | P83: 12 min. 38,433 | Q83: 61 | R83: 12,433 sek.
C84: 77 | D84: AMakaTaNau | E84: 80 | F84: 168 | G84: 114 | H84: 76 | I84: 156 | J84: 61 | K84: -8 | L84: 104 | M84: 105 | N84: 76 | O84: 932 | P84: 05 min. 50,248 | Q84: 50 | R84: 07,005 sek.
C85: 78 | D85: Nopūlas_bet_nesanāk | E85: 102 | F85: 118 | G85: 97 | H85: 60 | I85: 137 | J85: 84 | K85: 36 | L85: 183 | M85: 61 | N85: 54 | O85: 932 | P85: 05 min. 55,762 | Q85: 49 | R85: 07,260 sek.
C86: 79 | D86: Kartupeļu konsīlijs | E86: 84 | F86: 80 | G86: 117 | H86: 71 | I86: 175 | J86: 59 | K86: 36 | L86: 139 | M86: 70 | N86: 100 | O86: 931 | P86: 10 min. 38,842 | Q86: 56 | R86: 11,408 sek.
C87: 80 | D87: Erkils Puaro & Mis Mārpla | E87: 90 | F87: 125 | G87: 118 | H87: 89 | I87: 160 | J87: 40 | K87: -7 | L87: 136 | M87: 116 | N87: 64 | O87: 931 | P87: 05 min. 33,067 | Q87: 49 | R87: 06,797 sek.
C88: 81 | D88: dilles | E88: 81 | F88: 103 | G88: 129 | H88: 73 | I88: 170 | J88: 68 | K88: 46 | L88: 154 | M88: 64 | N88: 42 | O88: 930 | P88: 10 min. 17,643 | Q88: 55 | R88: 11,230 sek.
C89: 82 | D89: VECIE KAPI | E89: 94 | F89: 86 | G89: 98 | H89: 79 | I89: 160 | J89: 32 | K89: 56 | L89: 173 | M89: 55 | N89: 96 | O89: 929 | P89: 11 min. 19,180 | Q89: 57 | R89: 11,915 sek.
C90: 83 | D90: Zaļumi | E90: 95 | F90: 157 | G90: 111 | H90: 88 | I90: 117 | J90: 58 | K90: 43 | L90: 184 | M90: 45 | N90: 31 | O90: 929 | P90: 06 min. 44,185 | Q90: 51 | R90: 07,925 sek.
C91: 84 | D91: Džera cilvēks | E91: 63 | F91: 88 | G91: 90 | H91: 60 | I91: 163 | J91: 110 | K91: 55 | L91: 133 | M91: 92 | N91: 74 | O91: 928 | P91: 10 min. 11,363 | Q91: 54 | R91: 11,322 sek.
C92: 85 | D92: Kaimini | E92: 84 | F92: 89 | G92: 85 | H92: 79 | I92: 143 | J92: 95 | K92: 39 | L92: 158 | M92: 72 | N92: 84 | O92: 928 | P92: 07 min. 51,269 | Q92: 51 | R92: 09,241 sek.
C93: 86 | D93: ViesuļVītolVētra | E93: 113 | F93: 112 | G93: 109 | H93: 74 | I93: 150 | J93: 36 | K93: 55 | L93: 123 | M93: 47 | N93: 109 | O93: 928 | P93: 07 min. 43,444 | Q93: 51 | R93: 09,087 sek.
C94: 87 | D94: Ziemassvētku jampadracis | E94: 76 | F94: 149 | G94: 99 | H94: 58 | I94: 155 | J94: 37 | K94: 66 | L94: 128 | M94: 109 | N94: 49 | O94: 926 | P94: 07 min. 18,140 | Q94: 52 | R94: 08,426 sek.
C95: 88 | D95: Mezym, lai vēders smaguma sajūtu | E95: 67 | F95: 140 | G95: 109 | H95: 58 | I95: 186 | J95: 40 | K95: 39 | L95: 119 | M95: 75 | N95: 93 | O95: 926 | P95: 06 min. 45,866 | Q95: 50 | R95: 08,117 sek.
C96: 89 | D96: Karalienes galms | E96: 102 | F96: 153 | G96: 72 | H96: 74 | I96: 154 | J96: 44 | K96: 8 | L96: 153 | M96: 89 | N96: 76 | O96: 925 | P96: 06 min. 22,750 | Q96: 51 | R96: 07,505 sek.
C97: 90 | D97: Ziemassvētku bumbuļu skaņas un a | E97: 94 | F97: 93 | G97: 86 | H97: 83 | I97: 124 | J97: 49 | K97: 75 | L97: 156 | M97: 94 | N97: 70 | O97: 924 | P97: 11 min. 51,370 | Q97: 59 | R97: 12,057 sek.
C98: 91 | D98: Vitrupe | E98: 80 | F98: 149 | G98: 109 | H98: 55 | I98: 168 | J98: 70 | K98: 36 | L98: 88 | M98: 82 | N98: 87 | O98: 924 | P98: 09 min. 02,492 | Q98: 54 | R98: 10,046 sek.
C99: 92 | D99: Dūči | E99: 78 | F99: 128 | G99: 83 | H99: 99 | I99: 132 | J99: 54 | K99: 67 | L99: 155 | M99: 46 | N99: 81 | O99: 923 | P99: 06 min. 04,233 | Q99: 49 | R99: 07,433 sek.
C100: 93 | D100: Vilku Saime | E100: 110 | F100: 110 | G100: 76 | H100: 74 | I100: 150 | J100: 24 | K100: 56 | L100: 113 | M100: 103 | N100: 105 | O100: 921 | P100: 11 min. 35,351 | Q100: 58 | R100: 11,989 sek.
C101: 94 | D101: Dzirkstošie | E101: 91 | F101: 124 | G101: 112 | H101: 64 | I101: 148 | J101: 72 | K101: 8 | L101: 153 | M101: 98 | N101: 49 | O101: 919 | P101: 08 min. 20,268 | Q101: 52 | R101: 09,621 sek.
C102: 95 | D102: Krami | E102: 91 | F102: 115 | G102: 133 | H102: 80 | I102: 166 | J102: 58 | K102: 34 | L102: 141 | M102: 19 | N102: 81 | O102: 918 | P102: 09 min. 44,227 | Q102: 54 | R102: 10,819 sek.
C103: 96 | D103: Drosmiigie | E103: 85 | F103: 144 | G103: 105 | H103: 95 | I103: 157 | J103: 37 | K103: -21 | L103: 131 | M103: 88 | N103: 96 | O103: 917 | P103: 06 min. 58,424 | Q103: 51 | R103: 08,204 sek.
C104: 97 | D104: Muminu Bumbas | E104: 96 | F104: 121 | G104: 82 | H104: 89 | I104: 175 | J104: 37 | K104: 35 | L104: 120 | M104: 76 | N104: 85 | O104: 916 | P104: 08 min. 08,014 | Q104: 52 | R104: 09,385 sek.
C105: 98 | D105: Brians | E105: 94 | F105: 111 | G105: 58 | H105: 81 | I105: 182 | J105: 51 | K105: 35 | L105: 160 | M105: 81 | N105: 62 | O105: 915 | P105: 10 min. 09,515 | Q105: 55 | R105: 11,082 sek.
C106: 99 | D106: Speķapīràgi | E106: 62 | F106: 133 | G106: 121 | H106: 81 | I106: 162 | J106: 86 | K106: 7 | L106: 138 | M106: 85 | N106: 38 | O106: 913 | P106: 09 min. 10,960 | Q106: 54 | R106: 10,203 sek.
C107: 100 | D107: Rodžers un Feja | E107: 84 | F107: 106 | G107: 98 | H107: 58 | I107: 149 | J107: 75 | K107: 56 | L107: 131 | M107: 68 | N107: 88 | O107: 913 | P107: 08 min. 21,858 | Q107: 51 | R107: 09,840 sek.
C108: 101 | D108: Rūtiņa | E108: 67 | F108: 138 | G108: 117 | H108: 67 | I108: 162 | J108: 74 | K108: 39 | L108: 110 | M108: 84 | N108: 55 | O108: 913 | P108: 07 min. 27,229 | Q108: 51 | R108: 08,769 sek.
C109: 102 | D109: LejasBrauskas | E109: 89 | F109: 112 | G109: 89 | H109: 106 | I109: 155 | J109: 37 | K109: 54 | L109: 130 | M109: 71 | N109: 69 | O109: 912 | P109: 10 min. 30,749 | Q109: 55 | R109: 11,468 sek.
C110: 103 | D110: Piparkūku klans | E110: 62 | F110: 99 | G110: 108 | H110: 87 | I110: 151 | J110: 57 | K110: 51 | L110: 159 | M110: 81 | N110: 56 | O110: 911 | P110: 07 min. 53,185 | Q110: 51 | R110: 09,278 sek.
C111: 104 | D111: Rūķi | E111: 80 | F111: 131 | G111: 127 | H111: 60 | I111: 150 | J111: 74 | K111: 27 | L111: 107 | M111: 57 | N111: 97 | O111: 910 | P111: 09 min. 12,864 | Q111: 55 | R111: 10,052 sek.
C112: 105 | D112: PIGA | E112: 98 | F112: 109 | G112: 109 | H112: 88 | I112: 133 | J112: 73 | K112: 20 | L112: 129 | M112: 72 | N112: 76 | O112: 907 | P112: 12 min. 09,385 | Q112: 57 | R112: 12,796 sek.
C113: 106 | D113: Prieciņi-nieciņi | E113: 90 | F113: 116 | G113: 108 | H113: 56 | I113: 166 | J113: 103 | K113: 45 | L113: 124 | M113: 61 | N113: 38 | O113: 907 | P113: 09 min. 18,700 | Q113: 54 | R113: 10,346 sek.
C114: 107 | D114: Apaļie | E114: 97 | F114: 130 | G114: 110 | H114: 68 | I114: 140 | J114: 41 | K114: 57 | L114: 175 | M114: 49 | N114: 40 | O114: 907 | P114: 07 min. 24,358 | Q114: 50 | R114: 08,887 sek.
C115: 108 | D115: Ezīša puskažociņš | E115: 61 | F115: 106 | G115: 131 | H115: 91 | I115: 120 | J115: 64 | K115: 42 | L115: 150 | M115: 69 | N115: 72 | O115: 906 | P115: 08 min. 29,014 | Q115: 51 | R115: 09,981 sek.
C116: 109 | D116: Piekusušais Tētis | E116: 107 | F116: 131 | G116: 110 | H116: 75 | I116: 133 | J116: 23 | K116: 22 | L116: 141 | M116: 81 | N116: 82 | O116: 905 | P116: 06 min. 18,349 | Q116: 48 | R116: 07,882 sek.
C117: 110 | D117: Grinchi | E117: 62 | F117: 127 | G117: 105 | H117: 81 | I117: 153 | J117: 65 | K117: 43 | L117: 112 | M117: 78 | N117: 76 | O117: 902 | P117: 08 min. 52,877 | Q117: 53 | R117: 10,054 sek.
C118: 111 | D118: Fišbergi | E118: 117 | F118: 117 | G118: 138 | H118: 63 | I118: 149 | J118: 72 | K118: -7 | L118: 141 | M118: 71 | N118: 39 | O118: 900 | P118: 10 min. 59,400 | Q118: 56 | R118: 11,775 sek.
C119: 112 | D119: CĪŅAA | E119: 81 | F119: 120 | G119: 96 | H119: 77 | I119: 162 | J119: 66 | K119: 33 | L119: 94 | M119: 72 | N119: 98 | O119: 899 | P119: 13 min. 46,439 | Q119: 60 | R119: 13,774 sek.
C120: 113 | D120: JUST 80% | E120: 92 | F120: 123 | G120: 90 | H120: 52 | I120: 152 | J120: 59 | K120: 17 | L120: 143 | M120: 83 | N120: 88 | O120: 899 | P120: 12 min. 18,468 | Q120: 57 | R120: 12,956 sek.
C121: 114 | D121: Purpura prāti | E121: 84 | F121: 106 | G121: 97 | H121: 57 | I121: 167 | J121: 91 | K121: 17 | L121: 105 | M121: 92 | N121: 83 | O121: 899 | P121: 09 min. 38,907 | Q121: 54 | R121: 10,721 sek.
C122: 115 | D122: Bauskas šmuļi | E122: 112 | F122: 87 | G122: 110 | H122: 70 | I122: 153 | J122: 25 | K122: 30 | L122: 147 | M122: 56 | N122: 108 | O122: 898 | P122: 11 min. 51,800 | Q122: 57 | R122: 12,488 sek.
C123: 116 | D123: Skābenā rosola atraudziņas | E123: 93 | F123: 138 | G123: 81 | H123: 37 | I123: 170 | J123: 75 | K123: 54 | L123: 119 | M123: 101 | N123: 30 | O123: 898 | P123: 07 min. 26,734 | Q123: 50 | R123: 08,935 sek.
C124: 117 | D124: Hercogs | E124: 100 | F124: 139 | G124: 90 | H124: 70 | I124: 163 | J124: 41 | K124: 37 | L124: 105 | M124: 93 | N124: 59 | O124: 897 | P124: 05 min. 45,730 | Q124: 49 | R124: 07,056 sek.
C125: 118 | D125: Zsvētki Beļavā | E125: 83 | F125: 109 | G125: 111 | H125: 56 | I125: 137 | J125: 68 | K125: 47 | L125: 129 | M125: 97 | N125: 58 | O125: 895 | P125: 09 min. 51,831 | Q125: 53 | R125: 11,167 sek.
C126: 119 | D126: Saule20 | E126: 95 | F126: 119 | G126: 81 | H126: 66 | I126: 172 | J126: 59 | K126: 23 | L126: 136 | M126: 87 | N126: 57 | O126: 895 | P126: 06 min. 48,609 | Q126: 49 | R126: 08,339 sek.
C127: 120 | D127: Liepiņu Pastori Orbidānijā | E127: 86 | F127: 80 | G127: 98 | H127: 56 | I127: 116 | J127: 34 | K127: 81 | L127: 146 | M127: 118 | N127: 78 | O127: 893 | P127: 09 min. 17,565 | Q127: 52 | R127: 10,722 sek.
C128: 121 | D128: LĀČU LAIME | E128: 82 | F128: 106 | G128: 85 | H128: 76 | I128: 162 | J128: 49 | K128: 38 | L128: 166 | M128: 51 | N128: 77 | O128: 892 | P128: 08 min. 59,808 | Q128: 52 | R128: 10,381 sek.
C129: 122 | D129: Close enough | E129: 90 | F129: 72 | G129: 125 | H129: 78 | I129: 150 | J129: 75 | K129: 9 | L129: 126 | M129: 89 | N129: 77 | O129: 891 | P129: 11 min. 07,651 | Q129: 55 | R129: 12,139 sek.
C130: 123 | D130: Santa Marija | E130: 86 | F130: 51 | G130: 83 | H130: 97 | I130: 170 | J130: 67 | K130: 36 | L130: 117 | M130: 79 | N130: 104 | O130: 890 | P130: 14 min. 22,041 | Q130: 60 | R130: 14,367 sek.
C131: 124 | D131: BuBuČi | E131: 65 | F131: 128 | G131: 129 | H131: 101 | I131: 124 | J131: 67 | K131: -8 | L131: 125 | M131: 46 | N131: 112 | O131: 889 | P131: 09 min. 52,356 | Q131: 55 | R131: 10,770 sek.
C132: 125 | D132: Poļu mēbeles | E132: 81 | F132: 134 | G132: 90 | H132: 53 | I132: 128 | J132: 87 | K132: 41 | L132: 130 | M132: 55 | N132: 89 | O132: 888 | P132: 10 min. 53,246 | Q132: 55 | R132: 11,877 sek.
C133: 126 | D133: Kleperova45 | E133: 71 | F133: 169 | G133: 104 | H133: 80 | I133: 185 | J133: 53 | K133: -13 | L133: 131 | M133: 90 | N133: 18 | O133: 888 | P133: 07 min. 32,168 | Q133: 51 | R133: 08,866 sek.
C134: 127 | D134: Mūsmāju Gudrinieki | E134: 96 | F134: 122 | G134: 120 | H134: 75 | I134: 151 | J134: 72 | K134: 14 | L134: 118 | M134: 65 | N134: 54 | O134: 887 | P134: 13 min. 06,182 | Q134: 58 | R134: 13,555 sek.
C135: 128 | D135: Beberķu Aigars | E135: 65 | F135: 89 | G135: 110 | H135: 79 | I135: 161 | J135: 43 | K135: 59 | L135: 139 | M135: 88 | N135: 52 | O135: 885 | P135: 08 min. 45,272 | Q135: 52 | R135: 10,101 sek.
C136: 129 | D136: Enigma | E136: 82 | F136: 142 | G136: 129 | H136: 79 | I136: 174 | J136: 83 | K136: -33 | L136: 114 | M136: 59 | N136: 55 | O136: 884 | P136: 06 min. 48,695 | Q136: 50 | R136: 08,174 sek.
C137: 130 | D137: Banksy | E137: 112 | F137: 128 | G137: 83 | H137: 69 | I137: 162 | J137: 65 | K137: 0 | L137: 157 | M137: 49 | N137: 59 | O137: 884 | P137: 04 min. 48,222 | Q137: 47 | R137: 06,132 sek.
C138: 131 | D138: labakie | E138: 103 | F138: 110 | G138: 85 | H138: 85 | I138: 156 | J138: 63 | K138: 34 | L138: 163 | M138: 42 | N138: 40 | O138: 881 | P138: 08 min. 00,577 | Q138: 51 | R138: 09,423 sek.
C139: 132 | D139: Sinapse | E139: 87 | F139: 174 | G139: 111 | H139: 62 | I139: 139 | J139: 63 | K139: 69 | L139: 74 | M139: 64 | N139: 38 | O139: 881 | P139: 06 min. 15,158 | Q139: 48 | R139: 07,816 sek.
C140: 133 | D140: Dusmīgie Bebri | E140: 87 | F140: 83 | G140: 125 | H140: 61 | I140: 174 | J140: 40 | K140: 12 | L140: 118 | M140: 99 | N140: 78 | O140: 877 | P140: 08 min. 50,836 | Q140: 51 | R140: 10,409 sek.
C141: 134 | D141: Kartupelis(Samanta) | E141: 101 | F141: 120 | G141: 91 | H141: 90 | I141: 153 | J141: 44 | K141: 5 | L141: 124 | M141: 87 | N141: 62 | O141: 877 | P141: 06 min. 39,440 | Q141: 48 | R141: 08,322 sek.
C142: 135 | D142: Papes Purvs | E142: 85 | F142: 151 | G142: 125 | H142: 81 | I142: 115 | J142: 44 | K142: -24 | L142: 114 | M142: 105 | N142: 80 | O142: 876 | P142: 04 min. 55,828 | Q142: 47 | R142: 06,294 sek.
C143: 136 | D143: Ziemassvētku tītars | E143: 78 | F143: 85 | G143: 90 | H143: 78 | I143: 152 | J143: 73 | K143: 63 | L143: 121 | M143: 31 | N143: 104 | O143: 875 | P143: 13 min. 55,178 | Q143: 59 | R143: 14,156 sek.
C144: 137 | D144: Tālavas taurētāji | E144: 112 | F144: 167 | G144: 70 | H144: 78 | I144: 159 | J144: 44 | K144: 13 | L144: 97 | M144: 62 | N144: 72 | O144: 874 | P144: 03 min. 56,612 | Q144: 45 | R144: 05,258 sek.
C145: 138 | D145: KolkaCool | E145: 70 | F145: 170 | G145: 89 | H145: 66 | I145: 83 | J145: 51 | K145: 62 | L145: 130 | M145: 65 | N145: 87 | O145: 873 | P145: 10 min. 34,246 | Q145: 55 | R145: 11,532 sek.
C146: 139 | D146: Višuka radiņi | E146: 82 | F146: 155 | G146: 69 | H146: 74 | I146: 141 | J146: 34 | K146: 11 | L146: 149 | M146: 37 | N146: 121 | O146: 873 | P146: 10 min. 11,538 | Q146: 55 | R146: 11,119 sek.
C147: 140 | D147: BIRZMAĻI | E147: 97 | F147: 146 | G147: 109 | H147: 55 | I147: 131 | J147: 76 | K147: 45 | L147: 105 | M147: 59 | N147: 50 | O147: 873 | P147: 09 min. 23,908 | Q147: 52 | R147: 10,844 sek.
C148: 141 | D148: LKT | E148: 92 | F148: 114 | G148: 91 | H148: 89 | I148: 172 | J148: 23 | K148: 24 | L148: 111 | M148: 83 | N148: 73 | O148: 872 | P148: 08 min. 02,546 | Q148: 50 | R148: 09,651 sek.
C149: 142 | D149: Dzelzavas rūķi | E149: 100 | F149: 140 | G149: 89 | H149: 75 | I149: 163 | J149: 62 | K149: -25 | L149: 137 | M149: 56 | N149: 74 | O149: 871 | P149: 08 min. 08,690 | Q149: 51 | R149: 09,582 sek.
C150: 143 | D150: Lejas Veronikas | E150: 90 | F150: 134 | G150: 105 | H150: 62 | I150: 111 | J150: 58 | K150: 34 | L150: 103 | M150: 77 | N150: 97 | O150: 871 | P150: 07 min. 07,534 | Q150: 50 | R150: 08,551 sek.
C151: 144 | D151: Fazāni | E151: 102 | F151: 104 | G151: 96 | H151: 57 | I151: 170 | J151: 41 | K151: -4 | L151: 119 | M151: 103 | N151: 82 | O151: 870 | P151: 10 min. 02,953 | Q151: 53 | R151: 11,376 sek.
C152: 145 | D152: Līdaces | E152: 71 | F152: 124 | G152: 107 | H152: 56 | I152: 151 | J152: 60 | K152: 45 | L152: 87 | M152: 82 | N152: 86 | O152: 869 | P152: 07 min. 39,991 | Q152: 50 | R152: 09,200 sek.
C153: 146 | D153: Grīziņkalns | E153: 80 | F153: 104 | G153: 92 | H153: 78 | I153: 126 | J153: 37 | K153: 63 | L153: 146 | M153: 68 | N153: 75 | O153: 869 | P153: 06 min. 39,317 | Q153: 48 | R153: 08,319 sek.
C154: 147 | D154: Kristofers X | E154: 77 | F154: 96 | G154: 110 | H154: 79 | I154: 168 | J154: 32 | K154: 62 | L154: 79 | M154: 102 | N154: 63 | O154: 868 | P154: 09 min. 35,947 | Q154: 53 | R154: 10,867 sek.
C155: 148 | D155: Zītari | E155: 48 | F155: 129 | G155: 58 | H155: 63 | I155: 166 | J155: 90 | K155: 50 | L155: 111 | M155: 66 | N155: 87 | O155: 868 | P155: 08 min. 51,361 | Q155: 51 | R155: 10,419 sek.
C156: 149 | D156: Tagad zinu - ko nezināju! | E156: 81 | F156: 106 | G156: 136 | H156: 77 | I156: 114 | J156: 41 | K156: 4 | L156: 133 | M156: 84 | N156: 91 | O156: 867 | P156: 08 min. 23,314 | Q156: 50 | R156: 10,066 sek.
C157: 150 | D157: Gaujas iela | E157: 62 | F157: 105 | G157: 124 | H157: 75 | I157: 158 | J157: 87 | K157: 2 | L157: 121 | M157: 79 | N157: 53 | O157: 866 | P157: 09 min. 19,875 | Q157: 52 | R157: 10,767 sek.
C158: 151 | D158: Persikas Ekspresis | E158: 81 | F158: 95 | G158: 107 | H158: 83 | I158: 175 | J158: 40 | K158: 40 | L158: 106 | M158: 75 | N158: 64 | O158: 866 | P158: 08 min. 25,491 | Q158: 51 | R158: 09,912 sek.
C159: 152 | D159: Kursīšu gudrīši | E159: 73 | F159: 155 | G159: 83 | H159: 86 | I159: 131 | J159: 29 | K159: 32 | L159: 147 | M159: 62 | N159: 68 | O159: 866 | P159: 08 min. 17,502 | Q159: 50 | R159: 09,950 sek.
C160: 153 | D160: Vaiņagielas erudīti | E160: 66 | F160: 127 | G160: 130 | H160: 93 | I160: 153 | J160: 78 | K160: 25 | L160: 108 | M160: 45 | N160: 41 | O160: 866 | P160: 07 min. 19,932 | Q160: 49 | R160: 08,978 sek.
C161: 154 | D161: Līzas | E161: 78 | F161: 166 | G161: 129 | H161: 56 | I161: 172 | J161: 55 | K161: 8 | L161: 70 | M161: 70 | N161: 60 | O161: 864 | P161: 07 min. 16,353 | Q161: 50 | R161: 08,727 sek.
C162: 155 | D162: Priekuļi | E162: 92 | F162: 132 | G162: 130 | H162: 58 | I162: 144 | J162: 61 | K162: 3 | L162: 121 | M162: 49 | N162: 74 | O162: 864 | P162: 07 min. 53,744 | Q162: 49 | R162: 09,668 sek.
C163: 156 | D163: Kociņi | E163: 66 | F163: 79 | G163: 77 | H163: 83 | I163: 133 | J163: 61 | K163: 27 | L163: 116 | M163: 109 | N163: 107 | O163: 858 | P163: 13 min. 20,311 | Q163: 57 | R163: 14,041 sek.
C164: 157 | D164: Neglīte | E164: 86 | F164: 121 | G164: 118 | H164: 73 | I164: 165 | J164: 40 | K164: 11 | L164: 109 | M164: 53 | N164: 82 | O164: 858 | P164: 09 min. 44,733 | Q164: 52 | R164: 11,245 sek.
C165: 158 | D165: Līmes rūķīši | E165: 89 | F165: 100 | G165: 131 | H165: 84 | I165: 150 | J165: 67 | K165: 33 | L165: 96 | M165: 54 | N165: 53 | O165: 857 | P165: 08 min. 35,370 | Q165: 51 | R165: 10,105 sek.
C166: 159 | D166: Ķiršu kopiena | E166: 94 | F166: 94 | G166: 88 | H166: 70 | I166: 175 | J166: 62 | K166: 28 | L166: 140 | M166: 67 | N166: 39 | O166: 857 | P166: 08 min. 55,370 | Q166: 50 | R166: 10,707 sek.
C167: 160 | D167: Varduleni | E167: 90 | F167: 155 | G167: 118 | H167: 65 | I167: 129 | J167: 66 | K167: 38 | L167: 83 | M167: 43 | N167: 69 | O167: 856 | P167: 11 min. 06,923 | Q167: 54 | R167: 12,350 sek.
C168: 161 | D168: Pumpuru pamperi | E168: 78 | F168: 137 | G168: 87 | H168: 70 | I168: 145 | J168: 16 | K168: 46 | L168: 109 | M168: 73 | N168: 95 | O168: 856 | P168: 09 min. 45,560 | Q168: 53 | R168: 11,048 sek.
C169: 162 | D169: Mirdza | E169: 88 | F169: 91 | G169: 122 | H169: 72 | I169: 165 | J169: 57 | K169: 40 | L169: 116 | M169: 61 | N169: 44 | O169: 856 | P169: 08 min. 39,880 | Q169: 50 | R169: 10,398 sek.
C170: 163 | D170: Rupjmaizes kārtojums | E170: 89 | F170: 134 | G170: 112 | H170: 81 | I170: 155 | J170: 30 | K170: 18 | L170: 133 | M170: 65 | N170: 39 | O170: 856 | P170: 07 min. 08,398 | Q170: 48 | R170: 08,925 sek.
C171: 164 | D171: Slazdu nams | E171: 61 | F171: 142 | G171: 111 | H171: 63 | I171: 169 | J171: 32 | K171: -13 | L171: 126 | M171: 88 | N171: 76 | O171: 855 | P171: 09 min. 42,043 | Q171: 54 | R171: 10,779 sek.
C172: 165 | D172: Sīļi | E172: 104 | F172: 136 | G172: 67 | H172: 74 | I172: 153 | J172: 60 | K172: -13 | L172: 132 | M172: 60 | N172: 82 | O172: 855 | P172: 07 min. 33,746 | Q172: 49 | R172: 09,260 sek.
C173: 166 | D173: Ziemassvētkos futbola nav | E173: 71 | F173: 165 | G173: 58 | H173: 74 | I173: 128 | J173: 63 | K173: 39 | L173: 136 | M173: 107 | N173: 14 | O173: 855 | P173: 06 min. 25,271 | Q173: 47 | R173: 08,197 sek.
C174: 167 | D174: Maigais Arvīds | E174: 62 | F174: 127 | G174: 125 | H174: 41 | I174: 127 | J174: 37 | K174: 30 | L174: 158 | M174: 77 | N174: 70 | O174: 854 | P174: 09 min. 38,490 | Q174: 51 | R174: 11,343 sek.
C175: 168 | D175: Kokinatori | E175: 91 | F175: 154 | G175: 117 | H175: 79 | I175: 109 | J175: 35 | K175: 8 | L175: 160 | M175: 61 | N175: 39 | O175: 853 | P175: 05 min. 51,435 | Q175: 47 | R175: 07,477 sek.
C176: 169 | D176: Pie galda | E176: 99 | F176: 81 | G176: 112 | H176: 58 | I176: 129 | J176: 69 | K176: 31 | L176: 137 | M176: 40 | N176: 95 | O176: 851 | P176: 11 min. 32,515 | Q176: 54 | R176: 12,824 sek.
C177: 170 | D177: Imperators Augusts | E177: 94 | F177: 150 | G177: 63 | H177: 63 | I177: 162 | J177: 0 | K177: 85 | L177: 98 | M177: 75 | N177: 61 | O177: 851 | P177: 09 min. 12,689 | Q177: 52 | R177: 10,629 sek.
C178: 171 | D178: Zirņu ripinātāji | E178: 96 | F178: 118 | G178: 94 | H178: 83 | I178: 149 | J178: 78 | K178: 19 | L178: 88 | M178: 43 | N178: 83 | O178: 851 | P178: 08 min. 06,060 | Q178: 49 | R178: 09,920 sek.
C179: 172 | D179: Vilks viņu zin' | E179: 74 | F179: 83 | G179: 88 | H179: 97 | I179: 159 | J179: 41 | K179: 59 | L179: 105 | M179: 64 | N179: 80 | O179: 850 | P179: 13 min. 37,034 | Q179: 57 | R179: 14,334 sek.
C180: 173 | D180: Zvaniņi | E180: 68 | F180: 105 | G180: 119 | H180: 53 | I180: 131 | J180: 35 | K180: 47 | L180: 119 | M180: 73 | N180: 99 | O180: 849 | P180: 09 min. 19,308 | Q180: 51 | R180: 10,967 sek.
C181: 174 | D181: ANNIŅMUIŽA | E181: 93 | F181: 154 | G181: 40 | H181: 88 | I181: 125 | J181: 9 | K181: 28 | L181: 132 | M181: 120 | N181: 60 | O181: 849 | P181: 07 min. 33,858 | Q181: 49 | R181: 09,262 sek.
C182: 175 | D182: Bīstamie knābīši | E182: 65 | F182: 127 | G182: 81 | H182: 93 | I182: 123 | J182: 46 | K182: -4 | L182: 134 | M182: 71 | N182: 112 | O182: 848 | P182: 09 min. 53,893 | Q182: 51 | R182: 11,645 sek.
C183: 176 | D183: Lapsiņa un Vilciņš | E183: 74 | F183: 121 | G183: 83 | H183: 60 | I183: 157 | J183: 16 | K183: -1 | L183: 160 | M183: 103 | N183: 75 | O183: 848 | P183: 07 min. 28,917 | Q183: 49 | R183: 09,162 sek.
C184: 177 | D184: Gaismiņi | E184: 65 | F184: 143 | G184: 116 | H184: 66 | I184: 134 | J184: 76 | K184: 21 | L184: 112 | M184: 75 | N184: 38 | O184: 846 | P184: 12 min. 28,123 | Q184: 55 | R184: 13,602 sek.
C185: 178 | D185: gudras cuskas | E185: 70 | F185: 141 | G185: 106 | H185: 56 | I185: 132 | J185: 64 | K185: 37 | L185: 141 | M185: 40 | N185: 59 | O185: 846 | P185: 07 min. 07,319 | Q185: 48 | R185: 08,902 sek.
C186: 179 | D186: Zefīrs | E186: 98 | F186: 118 | G186: 91 | H186: 81 | I186: 167 | J186: 19 | K186: -21 | L186: 116 | M186: 96 | N186: 81 | O186: 846 | P186: 04 min. 42,449 | Q186: 45 | R186: 06,277 sek.
C187: 180 | D187: La familia | E187: 78 | F187: 110 | G187: 65 | H187: 70 | I187: 123 | J187: 34 | K187: 62 | L187: 131 | M187: 71 | N187: 101 | O187: 845 | P187: 09 min. 38,262 | Q187: 50 | R187: 11,565 sek.
C188: 181 | D188: Dzirciema circenīši | E188: 89 | F188: 95 | G188: 74 | H188: 63 | I188: 140 | J188: 37 | K188: 43 | L188: 101 | M188: 117 | N188: 85 | O188: 844 | P188: 11 min. 52,618 | Q188: 54 | R188: 13,197 sek.
C189: 182 | D189: Sipcenoki | E189: 53 | F189: 102 | G189: 85 | H189: 87 | I189: 144 | J189: 35 | K189: 47 | L189: 169 | M189: 88 | N189: 34 | O189: 844 | P189: 10 min. 15,486 | Q189: 52 | R189: 11,836 sek.
C190: 183 | D190: Jērs priedē | E190: 69 | F190: 179 | G190: 83 | H190: 90 | I190: 113 | J190: 45 | K190: 24 | L190: 110 | M190: 55 | N190: 76 | O190: 844 | P190: 08 min. 04,057 | Q190: 51 | R190: 09,491 sek.
C191: 184 | D191: PĪLĀDŽI | E191: 76 | F191: 125 | G191: 120 | H191: 53 | I191: 150 | J191: 69 | K191: -17 | L191: 94 | M191: 114 | N191: 60 | O191: 844 | P191: 08 min. 27,266 | Q191: 50 | R191: 10,145 sek.
C192: 185 | D192: Suņu dienas | E192: 81 | F192: 100 | G192: 116 | H192: 61 | I192: 131 | J192: 62 | K192: 24 | L192: 123 | M192: 42 | N192: 103 | O192: 843 | P192: 15 min. 05,891 | Q192: 59 | R192: 15,354 sek.
C193: 186 | D193: Karstās piparkūkas | E193: 67 | F193: 97 | G193: 92 | H193: 56 | I193: 136 | J193: 82 | K193: 53 | L193: 100 | M193: 77 | N193: 83 | O193: 843 | P193: 08 min. 40,058 | Q193: 51 | R193: 10,197 sek.
C194: 187 | D194: Putnu ielas susuri | E194: 87 | F194: 118 | G194: 96 | H194: 65 | I194: 108 | J194: 37 | K194: 26 | L194: 160 | M194: 90 | N194: 56 | O194: 843 | P194: 09 min. 23,040 | Q194: 51 | R194: 11,040 sek.
C195: 188 | D195: 38.dzīvoklis | E195: 102 | F195: 115 | G195: 118 | H195: 81 | I195: 161 | J195: 24 | K195: 19 | L195: 105 | M195: 63 | N195: 55 | O195: 843 | P195: 08 min. 48,034 | Q195: 50 | R195: 10,561 sek.
C196: 189 | D196: Jūrmalas pirāti | E196: 71 | F196: 59 | G196: 104 | H196: 79 | I196: 159 | J196: 79 | K196: 75 | L196: 123 | M196: 42 | N196: 51 | O196: 842 | P196: 12 min. 59,679 | Q196: 56 | R196: 13,923 sek.
C197: 190 | D197: Dīvāna ekaperti Ziemassvētkos | E197: 66 | F197: 103 | G197: 111 | H197: 66 | I197: 126 | J197: 67 | K197: 44 | L197: 101 | M197: 103 | N197: 55 | O197: 842 | P197: 12 min. 16,767 | Q197: 55 | R197: 13,396 sek.
C198: 191 | D198: Greizie Bumbierīši | E198: 62 | F198: 115 | G198: 87 | H198: 73 | I198: 131 | J198: 59 | K198: 20 | L198: 154 | M198: 82 | N198: 59 | O198: 842 | P198: 07 min. 23,735 | Q198: 48 | R198: 09,244 sek.
C199: 192 | D199: Pigori | E199: 63 | F199: 95 | G199: 86 | H199: 61 | I199: 158 | J199: 62 | K199: 36 | L199: 150 | M199: 64 | N199: 66 | O199: 841 | P199: 13 min. 50,782 | Q199: 58 | R199: 14,324 sek.
C200: 193 | D200: Elfu gudrīši | E200: 62 | F200: 97 | G200: 130 | H200: 89 | I200: 166 | J200: 40 | K200: 29 | L200: 131 | M200: 40 | N200: 57 | O200: 841 | P200: 08 min. 03,487 | Q200: 49 | R200: 09,867 sek.
C201: 194 | D201: Kalna ielas Ziemīši | E201: 64 | F201: 123 | G201: 80 | H201: 55 | I201: 162 | J201: 72 | K201: 48 | L201: 161 | M201: 35 | N201: 41 | O201: 841 | P201: 07 min. 18,460 | Q201: 48 | R201: 09,135 sek.
... 471 more rows

Sheet raundi
B2: =CONCATENATE(tabula!C2," --> Raundu uzvarētāji") -> "Ziemassvētku viktorīna" (tiešsaistē / vebinārā) | 2025.gada 24.decembris --> Raundu uzvarētāji
B3: # | C3: Raunda nosaukums | D3: Dalībnieks | E3: Rezultāts | F3: AVG | G3: MAX | H3: % no max
B4: 1 | C4: =TRANSPOSE(tabula!E4:N4) -> Pavediens | D4: Fišbergi | E4: 117 | F4: =TRANSPOSE(tabula!E7:N7) -> 71.9 | G4: =TRANSPOSE(tabula!E5:N5) -> 150 | H4: =E4/G4 -> 0.78
B5: 2 | C5: Ekspresis | D5: MADONIJĀŅI | E5: 190 | F5: 105.4 | G5: 216 | H5: =E5/G5 -> 0.8796296296
B6: 3 | C6: Filmu ne-pirmā plāna varoņi | D6: Fišbergi | E6: 138 | F6: 89 | G6: 150 | H6: 0.92
B7: 4 | C7: Burtu mīkla | D7: Hugis | E7: 106 | F7: 63.5 | G7: 168 | H7: 0.630952381
B8: 5 | C8: Ķēde | D8: Lettu rūķi | E8: 187 | F8: 125.1 | G8: 200 | H8: 0.935
B9: 6 | C9: Latvija | D9: Suituceļš un eglītes | E9: 123 | F9: 47.1 | G9: 150 | H9: 0.82
B10: 7 | C10: Risks: aktuālais šajās dienās | D10: Inspektors DZELTENĀ CIELAVA | E10: 94 | F10: 12.6 | G10: 120 | H10: 0.7833333333
B11: 8 | C11: Kas kopīgs? | D11: Zaļumi | E11: 184 | F11: 107.8 | G11: 205 | H11: 0.8975609756
B12: 9 | C12: Liekais pazūd | D12: Veckampu Dinamo | E12: 143 | F12: 58 | G12: 150 | H12: 0.9533333333
B13: 10 | C13: Audio | D13: FraRix | E13: 129 | F13: 54.6 | G13: 150 | H13: 0.86
B14: - | C14: Uzvarētājs | E14: =tabula!O8 -> 1152 | F14: =tabula!O7 -> 735 | G14: =SUM(G4:G13) -> 1659 | H14: =E14/G14 -> 0.6943942134
C15: =tabula!D8 -> ABC
